Cogmind - Beta 14 @@@ ROGUE MODE // 2024.12.02 @ 00:35:46 Player: certified.possum Result: Destroyed by S-27 Virus with Autogun Performance ------------- Evolutions (3) 1500 Regions Visited (6) 1200 Robots Destroyed (63) 315 Value Destroyed (1769) 1769 Prototype IDs (3) 60 Alien Tech Used (0) 0 Bonus (204) 204 TOTAL SCORE: 5048 Bonus ------- High Alert Combat Kills 224 Follower Combat Kills 7 Friendly Fire -27 Cogmind --------- Core Integrity 0/700 Matter 41/300 Energy 100/100 System Corruption 1% Temperature Cool (0) Movement Rolling (100) Location -7/Factory Parts ------- > --- POWER (1) -------- (None) > --- PROPULSION (5) --- Armored Huge Wheel > --- UTILITY (4) ------ Advanced Targeting Computer Core Analyzer Hacking Suite > --- WEAPON (3) ------- (None) > --- INVENTORY (5) ---- (None) Peak State ------------ > --- POWER ------------ (None) > --- PROPULSION ------- Armored Huge Wheel > --- UTILITY ---------- Advanced Targeting Computer Core Analyzer Hardened Medium Armor Plating Hacking Suite > --- WEAPON ----------- Ion Cannon Advanced EMP Blaster Advanced EMP Blaster > --- INVENTORY -------- (None) [Rating: 32] Favorites ----------- Power Ion Engine Engine Ion Engine Propulsion Flight Unit Treads Improved Treads Leg Aluminum Leg Wheel Armored Huge Wheel Flight Unit Flight Unit Utility Hacking Suite Device Recalibrator Storage Small Storage Unit Processor Advanced Targeting Computer Hackware Hacking Suite Protection Power Shielding Weapon Light Assault Rifle Energy Gun EM Pulse Gun Energy Cannon EM Pulse Cannon Ballistic Gun Light Assault Rifle Launcher Mini Grenade Launcher Build | -11 -10 -9 -9 -8 -8 -7 ------- Run | Yrd Mat Mat Min Mat Sto Fac Slots Evolved 6 | . . 2 . 2 . 2 Power . | . . . . . . . Propulsion 3 | . . 1 . 1 . 1 Utility 2 | . . 1 . 1 . . Weapon 1 | . . . . . . 1 Parts Attached 80 | 7 21 10 5 12 12 13 Power 11 | 1 4 . 2 2 1 1 Engine 11 | 1 4 . 2 2 1 1 Core . | . . . . . . . Reactor . | . . . . . . . Propulsion 21 | 2 5 4 3 2 3 2 Treads 1 | . . . . . . 1 Leg 3 | 2 1 . . . . . Wheel 1 | . . . . . . 1 Hover . | . . . . . . . Flight 16 | . 4 4 3 2 3 . Utility 18 | 1 5 4 . 3 2 3 Device 5 | . 2 . . 1 1 1 Storage 2 | 1 1 . . . . . Processor 4 | . . 2 . 1 . 1 Hackware 2 | . 1 . . . 1 . Protection 5 | . 1 2 . 1 . 1 Artifact . | . . . . . . . Weapon 30 | 3 7 2 . 5 6 7 Energy Gun 7 | 2 4 . . . . 1 Energy Cannon 6 | . . . . 2 3 1 Ballistic Gun 9 | 1 2 . . 3 2 1 Ballistic Cannon . | . . . . . . . Launcher 8 | . 1 2 . . 1 4 Special Weapon . | . . . . . . . Impact Weapon . | . . . . . . . Slashing Weapon . | . . . . . . . Piercing Weapon . | . . . . . . . Special Melee Weapon . | . . . . . . . Unidentified Prototypes 3 | . . 1 . . 1 1 Parts Lost 36 | . 5 . 6 7 5 13 Power 7 | . 1 . 2 1 2 1 Propulsion 13 | . 1 . 3 4 1 4 Utility 4 | . . . . 1 . 3 Weapon 12 | . 3 . 1 1 2 5 Highest Loss Streak 5 | . 4 . 5 3 3 5 To Critical Strikes . | . . . . . . . Average Slot Usage (%) 71 | . 77 92 82 80 81 33 Engine 8 | . 12 11 7 8 5 1 Leg 5 | . 15 . . . . . Flight 16 | . 9 33 25 29 27 1 Device 1 | . 2 . . . 4 . Storage 2 | . 9 . . . . . Processor 10 | . . 15 22 20 13 9 Hackware 8 | . 1 11 11 9 17 9 Protection 1 | . 3 2 . 2 . 1 Energy Gun 4 | . 12 . . . . . Energy Cannon 1 | . . . . 4 6 1 Ballistic Gun 3 | . 2 11 4 3 5 . Launcher 4 | . 5 8 11 2 . 1 Peak Build Rating 32 | 6 8 16 16 26 29 32 Average Rating 13 | 5 6 14 12 19 23 15 On Entrance 11 | . 6 8 16 13 13 24 Naked Turns . | . . . . . . . Heaviest Build 26 | 14 17 12 7 17 13 26 Greatest Support 28 | 20 20 13 13 17 17 28 Greatest Overweight (x) 4 | . 4 . 1 . . 2 Average Overweight (x) . | . . . . . . . Largest Inventory Capacity 8 | 8 8 5 5 5 5 5 Average Capacity 5 | 7 6 5 5 5 5 5 Most Carried 7 | 5 7 5 5 5 5 5 Average Carried 2 | 1 2 2 2 2 2 3 Final Capacity 8 | 8 5 5 5 5 5 5 Final Carried 5 | 2 2 4 1 4 5 . Class Distribution -------------------- 64% | Mutant 12% | Hacker-Sprinter 8% | Scavenger-Sprinter 8% | Hacker-Mutant 5% | Scavenger-Mutant Dominant Class ---------------- Mutant | -10/Materials Mutant | -9/Materials Mutant | -9/Mines Scavenger-Sprinter | -8/Materials Hacker-Sprinter | -8/Storage Mutant | -7/Factory Resources | -11 -10 -9 -9 -8 -8 -7 ----------- Run | Yrd Mat Mat Min Mat Sto Fac Matter Collected 1284 | 273 367 33 298 252 61 . Remotely . | . . . . . . . Salvage Created 1420 | 91 458 166 158 441 78 28 Parts 94 | 5 30 19 14 20 6 . Haulers Intercepted 1 | . . 1 . . . . Recyclers Shooed 1 | 1 . . . . . . Parts Field Recycled . | . . . . . . . Retrieved Matter . | . . . . . . . Parts Self-Destructed . | . . . . . . . Prevented . | . . . . . . . Kills | -11 -10 -9 -9 -8 -8 -7 ------- Run | Yrd Mat Mat Min Mat Sto Fac Combat Hostiles Destroyed 48 | . 16 2 13 12 4 1 Guns 17 | . 9 . 1 4 3 . Cannons 3 | . . . . 2 1 . AOE 28 | . 7 2 12 6 . 1 Classes Destroyed 13 | 2 4 5 . 2 . . Worker 1 | . . 1 . . . . Builder 2 | . . 1 . 1 . . Tunneler 1 | 1 . . . . . . Hauler 1 | . . 1 . . . . Recycler 1 | 1 . . . . . . Mechanic 1 | . . 1 . . . . Operator 3 | . 2 . . . 1 . Watcher 5 | . 3 2 . . . . Swarmer 17 | . 6 . 6 . 4 1 Grunt 25 | . 10 . 7 8 . . Brawler 1 | . . . . 1 . . Duelist 1 | . . . . 1 . . Sentry 4 | . . 2 . 2 . . Best Kill Streak 9 | 1 9 6 9 7 2 1 Combat Bots Only 7 | . 7 1 5 7 2 1 Max Kills in Single Turn 2 | 1 2 2 2 2 1 1 Gunslinging 1 | . 1 . . . . . Exploded 2 | . 2 1 2 2 . 1 Melee . | . . . . . . . Uniques/NPCs Destroyed . | . . . . . . . Combat | -11 -10 -9 -9 -8 -8 -7 -------- Run | Yrd Mat Mat Min Mat Sto Fac Hostile Shots Fired 582 | . 88 6 84 51 69 284 Missed 242 | . 23 2 43 22 36 116 Damage Taken 4410 | 32 850 92 482 549 403 2002 Core 1476 | . 217 30 218 205 90 716 Absorbed by Shields . | . . . . . . . Redirected to Shielding 3 | . 3 . . . . . Regen/Repaired (Parts) 112 | . 59 53 . . . . Core Remaining (%) 49 | 100 13 . 38 . 46 . Volleys Fired 155 | 7 64 12 24 28 13 7 Largest 2 | 2 2 2 2 2 2 2 Hottest 105 | 80 105 50 50 100 88 85 Shots Fired 234 | 14 95 21 34 40 22 8 Gun 138 | 14 72 12 10 13 10 7 Cannon 31 | . . . . 18 12 1 Launcher 65 | . 23 9 24 9 . . Special . | . . . . . . . Kinetic 73 | 3 23 12 10 13 10 2 Thermal 49 | . 28 . . 18 2 1 Explosive 65 | . 23 9 24 9 . . Electromagnetic 47 | 11 21 . . . 10 5 Robot Hit Streak 16 | 2 16 5 6 9 6 2 Robot Miss Streak 5 | 4 5 3 3 2 3 1 Penetration Max . | . . . . . . . Secondary Targets 2 | . 2 . . . . . Max Gunslinging Chain 1 | . 1 . . . . . Shots Hit Robots 118 | 7 48 9 11 22 16 5 Core Hits 118 | 3 36 14 24 33 7 1 Critical Kills . | . . . . . . . Critical Parts Destroyed . | . . . . . . . Critical Strikes . | . . . . . . . Melee Attacks . | . . . . . . . Impact . | . . . . . . . Slashing . | . . . . . . . Piercing . | . . . . . . . Sneak Attacks . | . . . . . . . Combat Hostiles . | . . . . . . . Follow-up Attacks . | . . . . . . . Damage Inflicted 4846 | 145 1337 611 1298 978 313 164 Guns 1003 | 72 544 49 43 132 118 45 Cannons 492 | . . . . 275 195 22 Explosions 3344 | 73 793 562 1255 571 . 90 Melee . | . . . . . . . Ramming 7 | . . . . . . 7 Kinetic 495 | 16 118 49 43 132 118 19 Thermal 731 | 73 249 . . 275 22 112 Explosive 3181 | . 793 562 1255 571 . . Electromagnetic 432 | 56 177 . . . 173 26 Impact . | . . . . . . . Slashing . | . . . . . . . Piercing . | . . . . . . . Highest Corruption 1 | . . . . . . 1 Average Corruption 1 | . . . . . . 1 Corruption Purged . | . . . . . . . Corruption Blocked . | . . . . . . . Effects 2 | . . . . . . 2 Matter Fused 1 | . . . . . . 1 Energy Discharges 1 | . . . . . . 1 Overload Shots . | . . . . . . . Overflow Damage 243 | 1 32 102 58 32 5 13 Projectiles 5 | . . . . . 5 . Explosions 238 | 1 32 102 58 32 . 13 Melee . | . . . . . . . Knockbacks . | . . . . . . . Impact . | . . . . . . . Kinetic . | . . . . . . . Secondary . | . . . . . . . Self-Inflicted Damage 336 | 33 47 32 131 48 . 45 Shots 11 | 1 2 1 5 1 . 1 Rammed 3 | . . . . . . 3 Targets Rammed 3 | . . . . . . 3 Kicked . | . . . . . . . Crushed . | . . . . . . . Highest Temperature 300 | 36 261 25 19 300 36 28 Average Temperature 85 | 17 98 12 8 148 15 11 Received Heat Transfer 1383 | . 417 9 48 234 180 495 Siege Activations . | . . . . . . . Robots Corrupted . | . . . . . . . Combat Hostiles . | . . . . . . . Parts Fried 2 | . 1 . . . 1 . Impact Corruptions . | . . . . . . . Robots Melted . | . . . . . . . Combat Hostiles . | . . . . . . . Parts Melted 2 | . 1 . . 1 . . Heat Transferred 1265 | 100 584 . . 407 37 137 Parts Sabotaged . | . . . . . . . Parts Stolen . | . . . . . . . Parts Stripped . | . . . . . . . Power Chain Reactions 2 | 1 . . . . . 1 Alert | -11 -10 -9 -9 -8 -8 -7 ------- Run | Yrd Mat Mat Min Mat Sto Fac Peak Influence 796 | 10 468 414 748 796 588 204 Initial 323 | . 6 197 161 291 323 189 Average 299 | 3 200 264 450 601 454 169 Maximum Alert Level 3 | . 2 2 3 3 2 1 Low Security (%) 42 | 100 58 13 . . . 93 Level 1 25 | . 28 84 24 15 34 6 Level 2 27 | . 12 2 72 51 65 . Level 3 3 | . . . 2 33 . . Level 4 . | . . . . . . . Level 5 . | . . . . . . . High Security . | . . . . . . . Max Security . | . . . . . . . Squads Dispatched 11 | . 4 . . 2 4 1 Investigation 4 | . 2 . . . 1 1 Extermination . | . . . . . . . Reinforcement 5 | . 2 . . 2 1 . Assault 2 | . . . . . 2 . Garrison . | . . . . . . . Intercept . | . . . . . . . Searches Triggered . | . . . . . . . Construction Impeded . | . . . . . . . Haulers Reinforced . | . . . . . . . Active Scanning Responses . | . . . . . . . Cargo Convoy Interrupts . | . . . . . . . Stealth | -11 -10 -9 -9 -8 -8 -7 --------- Run | Yrd Mat Mat Min Mat Sto Fac Distress Signals 5 | . 1 2 . 1 1 . Communications Jammed . | . . . . . . . Distress Signals . | . . . . . . . Times Spotted 123 | . 23 6 23 28 29 14 Peak Tracking Total 12 | . 6 4 6 12 12 8 Tactical Retreats 16 | . 1 . 2 1 6 6 Traps | -11 -10 -9 -9 -8 -8 -7 ------- Run | Yrd Mat Mat Min Mat Sto Fac Traps Triggered 2 | . . . . . . 2 Indirectly . | . . . . . . . Trap Hack Attempts . | . . . . . . . Triggered . | . . . . . . . Disarmed . | . . . . . . . Reprogrammed . | . . . . . . . Reused . | . . . . . . . Traps Extracted . | . . . . . . . Installed . | . . . . . . . Triggered . | . . . . . . . Machines | -11 -10 -9 -9 -8 -8 -7 ---------- Run | Yrd Mat Mat Min Mat Sto Fac Machines Disabled 14 | . 5 2 4 3 . . Max in Single Turn 2 | . 2 1 2 1 . . Garrison Access 1 | . . . . 1 . . Machines Repaired . | . . . . . . . Machines Dismantled . | . . . . . . . Machines Sabotaged . | . . . . . . . Overloaded Fab Kills . | . . . . . . . Hacking | -11 -10 -9 -9 -8 -8 -7 --------- Run | Yrd Mat Mat Min Mat Sto Fac Machines Accessed 14 | . 4 2 . 4 3 1 Terminals 8 | . 1 1 . 2 3 1 Fabricators . | . . . . . . . Repair Stations 2 | . 1 1 . . . . Recycling Units 2 | . 2 . . . . . Scanalyzers 1 | . . . . 1 . . Garrison Access 1 | . . . . 1 . . Total Hacks 46 | . 21 10 . 6 8 1 Successful 36 | . 14 9 . 6 6 1 Failed 9 | . 7 . . . 2 . Catastrophic . | . . . . . . . Database Lockouts 1 | . . 1 . . . . Manual 2 | . . . . . . 2 Terminals 19 | . 1 6 . 3 8 1 Fabricators . | . . . . . . . Repair Stations 12 | . 8 4 . . . . Recycling Units 12 | . 12 . . . . . Scanalyzers 2 | . . . . 2 . . Garrison Access 1 | . . . . 1 . . Terminal Hacks 15 | . . 5 . 3 6 1 Record 7 | . . 4 . . 3 . Open DSF 1 | . . . . . . 1 Unreport Threat 1 | . . . . . 1 . Maintenance Status 1 | . . 1 . . . . Assault Status 1 | . . . . 1 . . Recall Investigation 1 | . . . . . 1 . Recall Reinforcements 2 | . . . . 1 1 . Zone Layout 1 | . . . . 1 . . Fabricator Hacks . | . . . . . . . Repair Station Hacks 9 | . 5 4 . . . . Scan Component 5 | . 3 2 . . . . Repair 4 | . 2 2 . . . . Recycling Unit Hacks 9 | . 9 . . . . . Recycle Component 2 | . 2 . . . . . Process 2 | . 2 . . . . . Report Inventory 2 | . 2 . . . . . Retrieve Matter 2 | . 2 . . . . . Retrieve Components 1 | . 1 . . . . . Scanalyzer 2 | . . . . 2 . . Insert Component 1 | . . . . 1 . . Analyze 1 | . . . . 1 . . Garrison Access Hacks 1 | . . . . 1 . . Seal Access 1 | . . . . 1 . . Unauthorized Hacks . | . . . . . . . Terminals . | . . . . . . . Fabricators . | . . . . . . . Repair Stations . | . . . . . . . Recycling Units . | . . . . . . . Scanalyzers . | . . . . . . . Garrison Access . | . . . . . . . Data Cores Recovered 1 | . . . . . 1 . Used 1 | . . . . . 1 . Hacking Detections 4 | . 2 1 . . 1 . Full Trace Events 3 | . 2 . . . 1 . Feedback Events . | . . . . . . . Feedback Blocked . | . . . . . . . Robot Schematics Acquired . | . . . . . . . Robots Built . | . . . . . . . Authchips . | . . . . . . . Time . | . . . . . . . Total Robot Build Rating . | . . . . . . . Part Schematics Acquired 1 | . . . . 1 . . Parts Built . | . . . . . . . Authchips . | . . . . . . . Time . | . . . . . . . Total Part Build Rating . | . . . . . . . Parts Repaired 4 | . 2 2 . . . . Time 116 | . 58 58 . . . . Parts Recycled 2 | . 2 . . . . . Recycled Matter 221 | . 221 . . . . . Retrieved Matter 230 | . 230 . . . . . Retrieved Components . | . . . . . . . Parts Scanalyzed 1 | . . . . 1 . . Part Schematics Acquired 1 | . . . . 1 . . Parts Damaged . | . . . . . . . Bothacking | -11 -10 -9 -9 -8 -8 -7 ------------ Run | Yrd Mat Mat Min Mat Sto Fac Used RIF Installer . | . . . . . . . Robots Hacked . | . . . . . . . Non-combat . | . . . . . . . Combat . | . . . . . . . Robot Hacks Applied . | . . . . . . . Relay Couplers Released . | . . . . . . . Fabnet Peak Effective % . | . . . . . . . Robots Rewired . | . . . . . . . Allies Hacked . | . . . . . . . Hacks Repelled . | . . . . . . . Allies | -11 -10 -9 -9 -8 -8 -7 -------- Run | Yrd Mat Mat Min Mat Sto Fac Total Allies 3 | . . . 1 . 2 . Largest Group 2 | . . . 1 . 2 . Highest-Rated Group 62 | . . . 31 . 62 . Highest-Rated Ally 31 | . . . 31 . 31 . Total Orders . | . . . . . . . Ally Attacks 10 | . . . 4 . 6 . Total Damage 83 | . . . 20 . 63 . Kills 1 | . . . 1 . . . Allies Corrupted . | . . . . . . . Allies Melted . | . . . . . . . Intel | -11 -10 -9 -9 -8 -8 -7 ------- Run | Yrd Mat Mat Min Mat Sto Fac Robot Analysis Total . | . . . . . . . Derelict Logs Recovered 1 | . . . 1 . . . Drone Launches . | . . . . . . . Drone Recoveries . | . . . . . . . Exploration | -11 -10 -9 -9 -8 -8 -7 ------------- Run | Yrd Mat Mat Min Mat Sto Fac Turns Passed 2234 | 109 699 157 241 243 346 439 Spaces Moved 2699 | 70 662 173 470 443 508 373 Core 149 | 15 . . . 3 . 131 Treads 50 | . . . . . . 50 Legs 240 | 55 185 . . . . . Wheels 141 | . . . . . . 141 Hover . | . . . . . . . Flight 2119 | . 477 173 470 440 508 51 Fastest Speed 27 | 50 37 34 34 29 27 29 Average Speed 52 | 105 64 34 36 31 31 106 Slowest Speed 370 | 120 370 34 120 50 40 195 Overloaded Moves . | . . . . . . . Propulsion Burnouts . | . . . . . . . Robots Hopped 25 | . 2 . 3 10 10 . Cave-ins Triggered . | . . . . . . . Exploration Rate (%) 48 | 5 96 20 84 44 77 14 Regions Visited 6 Branch Regions 2 Pre-discovered Areas 2 | . . . 2 . . . Known Exits Taken . | . . . . . . . Unknown Exits Taken 6 | 1 1 1 1 1 1 . Scrap Searched 2 | . . . 2 . . . Spaces Dug 3 | . 3 . . . . . Terrain Destroyed 445 | . 86 82 210 63 . 4 Melee . | . . . . . . . Projectile 5 | . . . . 5 . . AOE 440 | . 86 82 210 58 . 4 Terrain Rammed . | . . . . . . . Walls Destroyed . | . . . . . . . Machines Disabled . | . . . . . . . Actions | -11 -10 -9 -9 -8 -8 -7 --------- Run | Yrd Mat Mat Min Mat Sto Fac Total 3252 | 91 845 250 503 496 660 407 Wait 256 | . 64 46 2 12 127 5 Move 2647 | 69 657 172 464 425 487 373 Hop 21 | . 2 . 2 7 10 . Pick Up 64 | 8 23 8 4 9 10 2 Fast Attach 3 | . . . . . . 3 Attach 54 | 6 11 6 5 7 9 10 Detach 7 | . . 1 . 2 1 3 Swap 23 | 1 10 4 . 5 3 . Drop 19 | . 14 1 2 1 . 1 Fire 155 | 7 64 12 24 28 13 7 Melee . | . . . . . . . Ram 3 | . . . . . . 3 Kick . | . . . . . . . Crush . | . . . . . . . Escape Stasis . | . . . . . . . Rewire . | . . . . . . . Trap . | . . . . . . . Miscellaneous . | . . . . . . . Route ------- -11/Scrapyard -10/Materials (discovered 5 exits: *Mat x3 / [*Min x2]) -9/Materials -9/Mines (discovered 3 exits: *Mat x2 / [*Exi]) -8/Materials (discovered 2 exits: *Sto x2) -8/Storage -7/Factory (discovered 1 exit: [*Low]) History --------- Turn | Location | Event 5 | -11/Scrapyard | Discovered new exit (range 15) 110 | -11/Scrapyard | Entered Materials 260 | -10/Materials | Core integrity fell below 50% 288 | -10/Materials | Lost 4 parts (1p3w) 349 | -10/Materials | Discovered new exit (range 12) 396 | -10/Materials | Repaired Particle Gun 424 | -10/Materials | Repaired Ion Engine 570 | -10/Materials | Core integrity fell below 20% 582 | -10/Materials | Discovered new exit (range 14) 629 | -10/Materials | Discovered new exit (range 9) 634 | -10/Materials | Destroyed 7 combat bots 760 | -10/Materials | Discovered new exit (range 8) 808 | -10/Materials | Discovered new exit (range 6) 809 | -10/Materials | Entered another Materials area 809 | -9/Materials | Evolved 2 slots: Propulsion x1, Utility x1 830 | -9/Materials | Central database locked down 844 | -9/Materials | Build established: Mutant 882 | -9/Materials | Discovered new exit (range 8) 905 | -9/Materials | Repaired Flight Unit 941 | -9/Materials | Repaired Mni. Grenade Launcher 966 | -9/Materials | Entered Mines 968 | -9/Mines | Escorted by a lone wolf Derelict 977 | -9/Mines | Discovered new exit (range 12) 988 | -9/Mines | Learned location of Storage (-8) 995 | -9/Mines | Learned location of Zion (-6) 1094 | -9/Mines | Lost 5 parts (2p2n1w) 1100 | -9/Mines | Deemed a non-threat by the Exiles lab entrance 1100 | -9/Mines | Discovered new exit (range 5) 1188 | -9/Mines | Core integrity fell below 50% 1195 | -9/Mines | Discovered new exit (range 8) 1207 | -9/Mines | Entered Materials 1207 | -8/Materials | Evolved 2 slots: Propulsion x1, Utility x1 1290 | -8/Materials | Destroyed 7 combat bots 1306 | -8/Materials | Discovered new exit (range 18) 1426 | -8/Materials | Discovered new exit (range 10) 1450 | -8/Materials | Entered Storage 1476 | -8/Storage | Lost 3 parts (1p2n) 1741 | -8/Storage | Core integrity fell below 50% 1759 | -8/Storage | Discovered new exit (range 16) 1760 | -8/Storage | Met a pair of Derelict thieves 1790 | -8/Storage | Lost 3 parts (1p2w) 1796 | -8/Storage | Entered Factory 1796 | -7/Factory | Evolved 2 slots: Propulsion x1, Weapon x1 1867 | -7/Factory | Lost 5 parts (4n1w) 1887 | -7/Factory | Discovered new exit (range 15) 1952 | -7/Factory | Core integrity fell below 50% 2031 | -7/Factory | Lost 3 parts (1n1u1w) 2179 | -7/Factory | Core integrity fell below 20% 2231 | -7/Factory | Lost 3 parts (1u2w) 2235 | -7/Factory | Destroyed by S-27 Virus with Autogun Last Messages --------------- U-05 Engineer works on Assembly Bed. Triggered Alarm Trap. An alarm sounds. ALERT: Alarm triggered, dispatching investigation squad. U-05 Engineer lays Concrete. K-01 Serf cleans the Assembly Bed. U-05 Engineer lays Concrete. K-01 Serf cleans the Assembly Bed. U-05 Engineer lays Concrete. K-01 Serf cleans the Assembly Bed. U-05 Engineer lays Concrete. U-05 Engineer works on Assembly Bed. K-01 Serf collects debris. Hrd. Medium Armor Plating destroyed. U-05 Engineer works on Assembly Bed. Adv. EMP Blaster destroyed. Connecting with DSF Access... Current location identified: Factory K-01 Serf cleans the Neutrino Reactor. Map ----- +----------------------------------------------------+ | #?????????????????????????????????????????????? | | #?????????????????????????????????????????????? | | #??#########??????????????????????????????????? | | #??# ?????????????????????????????????? | | #??# """ ""?????????????????????????????????? | | #??# """ """ ?#?????????????????????????????? | | #??# """ """ +?????????????????????????????? | | #??# #?????????????????????????????? | | #### """ """ #?????????????????????????????? | | / """ """ !#??????????????? #???????????? | | #### """ """ #?????????????? #???????????? | | T#?# #?????????????? #???????????? | | #?# ! #????????????? #???????????? | | ##?# #????????????? #???????????? | | #??# #???????????? #???????????? | | #??#######/################## ####????????? | | #??????# ???????? | | #??????# ???????? | | ##??????# ??????? | | ????????# ??????? | | ? ??????? | | ??########################s### #???????????? | | ???????????# #???? #???????????? | | ##???????????# """"""""" #?????????????????? | | ?????????????# #?????????????????? | | ?????????????# ![[ @ #?????????????????? | | ?????????????# ![! #?????????????????? | | ?????????????# ![! ! #?????????????????? | | ?????????????# #?????????????????? | | ?????????????###+###############?????????????????? | | ?????????????????????????????????????????????????? | | ?????????????????????????????????????????????????? | | ?????????????????????????????????????????????????? | | ?????????????????????????????????????????????????? | | ?????????????????????????????????????????????????? | | ?????????????????????????????????????????????????? | | ?????????????????????????????????????????????????? | | ?????????????????????????????????????????????????? | | ?????????????????????????????????????????????????? | | ?????????????????????????????????????????????????? | | ?????????????????????????????????????????????????? | | ?????????????????????????????????????????????????? | | ?????????????????????????????????????????????????? | | ######+#####?????????????????????????????????????? | | ^ ?????????????????????????????????????? | | ^ ????????????????????????????????????? | | ????????????????????????????????????? | | ????????????????????????????????????? | | """???????????????????????????????????????? | | #### """???????????????????????????????????????? | +----------------------------------------------------+ Best States ------------- Heat Dissipation 35 Energy Generation 14 Energy Capacity 280 Matter Stores 300 Matter Capacity 300 Sight Range 18 Terrain Scan Density 10 Armor Coverage 225 Power Shielding 33 Evasion (%) 64 Targeting Accuracy 14 Core Analysis 6 Recoil Reduction 1 Offensive Hacking 20 Item Schematics ----------------- Lgt. Ion Engine | -8/Materials | Scanalyzed Robot Schematics ------------------ None Fabricated ------------ Nothing Alien Tech Used ----------------- None Achievements -------------- Cya! Dynamic Key Everything Is Under Control GoHome() Remodeling Challenges ------------ None Game ------ Seed ProtonDeliveryCompressor Manual? 0 Play Time 00:44:01 Cumulative 3.6 hours Start 2024.12.01 @ 23:55:55 End 2024.12.02 @ 00:35:46 Sessions 1 Manual Loads 0 Difficulty Rogue Special Mode None Game No. 8 Rogue 8 Adventurer 0 Explorer 0 Win Type - Total 0 Types 0/0/0/0/0/0/0/0/0 Lore% 2 Gallery% 9 Achievement% 11 Wizard Run 0 Options --------- Layout 1 ASCII 0 Keyboard 0 Movement Mouse Keybinds 0 Fullscreen 2 Font 32/Tamsyn Map View 50x35 Zoom Use 0% Tactical HUD 0 Map Filters NONE Filters NONE Steam 1 RUN: 7236acb7-52c8-4a17-b723-8762219d6e61